bitfinex-derivatives/quotes_SOLF0:USTF0_20260210
["timestamp","ask_amount","ask_price","bid_price","bid_amount"]
[1770751095203,10.04254744,82.7,82.643,10.8961]
[1770751095401,121.48,82.699,82.632,4.8760023]
[1770751096208,121.48,82.708,82.632,4.8760023]
[1770751096808,10.8897,82.692,82.632,4.8760023]
[1770751097106,10.04254744,82.69,82.613,4.88468454]
[1770751097504,10.8914,82.68,82.624,10.8986]
[1770751098205,10.8902,82.689,82.633,10.8975]
[1770751098408,121.86,82.688,82.633,10.8975]
[1770751098805,10.04254744,82.71,82.642,4.9028237]
[1770751099212,10.8891,82.697,82.642,4.9028237]
[1770751099512,10.04254744,82.69,82.624,4.9028237]
[1770751099906,10.8929,82.668,82.624,4.9028237]
[1770751100110,121.88,82.675,82.624,4.9028237]
[1770751101203,10.04254744,82.69,82.624,4.9028237]
[1770751101402,10.8911,82.682,82.629,4.87130604]
[1770751101802,122.02,82.688,82.611,4.88570229]
[1770751102416,10.8935,82.664,82.612,10.9001]
[1770751102616,10.04254744,82.67,82.591,4.88570229]
[1770751103814,10.8948,82.654,82.604,10.9012]
[1770751104416,10.8948,82.654,82.591,4.88570229]
[1770751104417,10.8937,82.662,82.611,10.9003]
[1770751106018,10.8926,82.671,82.607,4.87697498]
[1770751106911,10.8891,82.697,82.626,4.97565053]
[1770751107111,10.04254744,82.72,82.626,4.97565053]
[1770751107312,122.28,82.717,82.658,10.8942]
[1770751108715,10.8872,82.711,82.658,10.8942]
[1770751109015,36.21,82.716,82.652,4.93637559]
[1770751109616,10.8881,82.705,82.654,10.8946]
[1770751110216,10.04254744,82.7,82.646,10.8957]
[1770751110717,10.04254744,82.7,82.633,4.94069485]
[1770751111124,10.8895,82.694,82.644,10.896]
[1770751111323,10.04254744,82.7,82.633,4.94069485]
[1770751111618,122.28,82.717,82.633,4.94069485]
[1770751112524,119.02,82.732,82.669,4.98464675]
[1770751113721,119.02,82.732,82.681,4.98464675]
[1770751114032,36.21,82.761,82.681,4.98464675]
[1770751114234,11.89216378,82.827,82.692,10.8896]
[1770751114235,10.8816,82.754,82.692,10.8896]
[1770751114730,132.77,82.763,82.692,10.8896]
[1770751115728,10.8825,82.747,82.692,15.89861836]
[1770751116023,132.77,82.763,82.695,5.00636858]
[1770751116220,10.04254744,82.75,82.695,5.00636858]
[1770751116826,10.8838,82.737,82.684,5.00636858]
[1770751118033,96.56,82.763,82.694,5.01282937]
[1770751119327,10.8828,82.745,82.69,10.8898]
[1770751119726,10.8828,82.745,82.69,15.90262937]
[1770751120433,10.04254744,82.75,82.699,10.8887]
[1770751120934,10.04254744,82.75,82.69,5.01282937]
[1770751121529,10.8823,82.749,82.698,10.8889]
[1770751122341,10.04254744,82.75,82.698,10.8889]
[1770751124236,10.04254744,82.75,82.689,10.8901]
[1770751124537,10.04254744,82.75,82.674,5.12008863]
[1770751125338,123.38,82.749,82.674,5.12008863]
[1770751125730,10.8846,82.732,82.679,10.8914]
[1770751126043,10.04254744,82.73,82.634,5.11719639]
[1770751126435,10.8865,82.717,82.634,5.11719639]
[1770751127541,10.8865,82.717,82.665,10.8932]
[1770751128440,10.8865,82.717,82.653,5.11719639]
[1770751128441,10.8865,82.717,82.657,10.8942]
[1770751128737,10.8874,82.71,82.657,10.8942]
[1770751129043,123.42,82.728,82.661,5.11873577]
[1770751129232,10.8854,82.725,82.661,5.11873577]
[1770751129740,10.04254744,82.75,82.677,5.11873577]
[1770751130739,10.8834,82.74,82.685,10.8906]
[1770751131537,20.92474744,82.75,82.695,5.09813066]
[1770751131835,10.8822,82.75,82.695,5.09813066]
[1770751132428,36.21,82.761,82.671,5.09515946]
[1770751133643,10.883,82.744,82.692,10.8896]
[1770751134143,10.883,82.744,82.693,5.08441464]
[1770751134339,10.883,82.744,82.694,10.8894]
[1770751134934,10.883,82.744,82.702,10.8883]
[1770751135139,36.21,82.769,82.67,10.04254744]
[1770751135140,10.8838,82.738,82.67,10.04254744]
[1770751135337,10.04254744,82.75,82.671,5.08441464]
[1770751135546,10.04254744,82.75,82.686,5.08441464]
[1770751136047,10.885,82.728,82.688,10.8901]
[1770751136238,10.04254744,82.75,82.689,5.08435891]
[1770751137040,104.86,82.766,82.689,5.08435891]
[1770751137248,10.8826,82.746,82.699,5.08435891]
[1770751137640,10.8816,82.754,82.701,10.8884]
[1770751140151,10.8804,82.763,82.711,10.8871]
[1770751140454,123.16,82.775,82.702,5.09020448]
[1770751140652,10.8773,82.787,82.734,10.8842]
[1770751140855,10.8773,82.787,82.731,5.09020448]
[1770751141757,10.8773,82.787,82.741,10.8832]
[1770751141949,10.04254744,82.79,82.712,5.15807198]
[1770751142549,10.04254744,82.77,82.695,5.15807198]
[1770751143258,10.04254744,82.75,82.679,5.15807198]
[1770751143459,21.7547,82.787,82.649,21.7908]
[1770751143460,10.04254744,82.73,82.65,5.15807198]
[1770751143955,10.8866,82.716,82.665,10.8932]
[1770751144661,10.8876,82.709,82.656,10.8944]
[1770751145651,36.21,82.725,82.61,10.04254744]
[1770751145652,10.8885,82.702,82.647,10.8955]
[1770751145854,10.04254744,82.7,82.647,10.8955]
[1770751146055,36.21,82.725,82.632,5.19745726]
[1770751146252,10.8866,82.716,82.654,10.8947]
[1770751146449,10.04254744,82.69,82.615,5.18768047]
[1770751147151,10.04254744,82.67,82.615,5.18768047]
[1770751147455,96.5,82.688,82.615,5.18768047]
[1770751148554,10.04254744,82.71,82.632,5.20722594]
[1770751148861,96.5,82.725,82.632,5.20722594]
[1770751149355,10.8864,82.717,82.656,5.20722594]
[1770751150058,10.04254744,82.71,82.631,5.20518845]
[1770751150256,10.0377547,82.71,82.631,5.20518845]
[1770751150563,10.89,82.69,82.631,5.20518845]
[1770751151154,10.0377547,82.69,82.614,5.20518845]
[1770751152358,10.0377547,82.69,82.616,5.21543768]
[1770751152848,10.03956046,82.7,82.616,5.21543768]
[1770751153658,10.8892,82.696,82.633,5.21543768]
[1770751154059,10.03956046,82.7,82.633,5.21543768]
[1770751154860,10.03956046,82.7,82.601,5.21620795]
[1770751155258,10.8916,82.678,82.614,10.8999]
[1770751157061,10.8926,82.67,82.614,10.8999]
[1770751157665,10.8938,82.662,82.601,16.11780795]
[1770751158256,46.24956046,82.68,82.584,5.22809943]
[1770751158257,10.03956046,82.66,82.584,5.22809943]
[1770751158955,10.03956046,82.66,82.59,16.13119943]
[1770751159157,10.03956046,82.66,82.591,5.22809943]
[1770751159556,10.8961,82.644,82.592,10.9028]
[1770751159756,10.03956046,82.66,82.561,5.22809943]
[1770751159757,46.24956046,82.66,82.561,5.22809943]
[1770751160355,96.56,82.679,82.594,5.21375654]
[1770751161470,10.03956046,82.7,82.611,5.21398237]
[1770751161659,10.03956046,82.7,82.621,5.21398237]
[1770751162057,10.03956046,82.72,82.644,5.21461702]
[1770751162264,36.21,82.739,82.644,5.21461702]
[1770751162464,36.21,82.739,82.648,10.8954]
[1770751162765,36.21,82.739,82.649,5.21461702]
[1770751163866,10.888,82.705,82.651,10.895]
[1770751164066,10.03956046,82.72,82.631,5.17112084]
[1770751164367,21.7676,82.738,82.631,5.17112084]
[1770751164368,10.03956046,82.7,82.631,5.17112084]
[1770751164760,21.12441003,82.76,82.661,5.17112084]
[1770751165062,10.03956046,82.76,82.681,5.17112084]
[1770751165261,10.8833,82.741,82.688,5.17112084]
[1770751165456,10.03956046,82.76,82.688,5.17112084]
[1770751165662,10.881,82.759,82.698,10.8889]
[1770751165956,124.18,82.776,82.688,5.17112084]
[1770751166167,10.03956046,82.76,82.688,5.17112084]
[1770751166665,10.03956046,82.76,82.696,10.8892]
[1770751167066,10.03956046,82.76,82.704,10.8881]
[1770751169169,10.03956046,82.76,82.696,5.0569191]
[1770751169670,10.8807,82.761,82.696,5.0569191]
[1770751170371,10.8792,82.773,82.709,5.04743707]
[1770751171163,10.8801,82.765,82.709,5.04743707]
[1770751172368,10.8821,82.75,82.692,10.8897]
[1770751174071,10.8821,82.75,82.638,21.7936]
[1770751174072,36.21,82.759,82.667,5.04784886]
[1770751174274,10.03956046,82.74,82.667,5.04784886]
[1770751174476,36.21,82.757,82.667,5.04784886]
[1770751174665,10.8854,82.725,82.671,5.04784886]
[1770751175573,10.8854,82.725,82.675,10.8919]
[1770751175773,10.8854,82.725,82.675,15.93974886]
[1770751177677,10.03956046,82.76,82.688,5.0710485]
[1770751178171,10.03956046,82.76,82.688,15.9612485]
[1770751178777,10.884,82.736,82.688,5.0710485]
[1770751178973,36.21,82.735,82.613,5.07127207]
[1770751179173,36.21,82.735,82.631,5.07127207]
[1770751179380,36.21,82.735,82.657,10.8942]
[1770751179580,10.03956046,82.72,82.657,10.8942]
[1770751180075,10.03956046,82.72,82.658,5.07831839]
[1770751180279,10.8879,82.706,82.658,5.07831839]
[1770751180780,10.8865,82.717,82.663,10.8934]
[1770751181380,10.8865,82.717,82.663,15.97171839]
[1770751183379,10.03956046,82.72,82.63,10.03956046]
[1770751183679,10.03956046,82.7,82.611,5.05396116]
[1770751184476,10.03956046,82.7,82.622,4.98700593]
[1770751185180,36.21,82.714,82.592,21.8057]
[1770751185181,96.52,82.717,82.643,4.98700593]
[1770751185481,96.52,82.718,82.643,4.98700593]
[1770751186689,10.8888,82.699,82.648,10.8955]
[1770751187274,10.8888,82.699,82.643,4.98700593]
[1770751187478,10.8898,82.692,82.643,4.98700593]
[1770751188686,10.8887,82.7,82.647,4.98794387]
[1770751189690,10.8887,82.7,82.65,10.8952]
[1770751189993,10.8887,82.7,82.651,4.98599704]
[1770751190693,10.8896,82.694,82.651,4.98599704]
[1770751191491,10.8882,82.704,82.655,4.98586895]
[1770751191894,96.52,82.718,82.655,4.98586895]
[1770751192794,10.889,82.698,82.655,4.98586895]
[1770751194200,36.21,82.717,82.655,4.98586895]
[1770751194390,36.21,82.717,82.644,10.896]
[1770751194999,10.8897,82.693,82.65,5.00513349]
[1770751199595,96.52,82.718,82.613,21.8003]
[1770751199596,10.8885,82.702,82.653,4.9870365]
[1770751200599,96.52,82.718,82.662,4.98654426]
[1770751201195,10.8871,82.712,82.671,10.8924]
[1770751201401,96.52,82.718,82.662,4.98654426]
[1770751201800,10.888,82.705,82.662,4.98654426]
[1770751201998,96.52,82.718,82.662,4.98654426]
[1770751202193,96.52,82.718,82.645,4.98640993]
[1770751203003,96.52,82.718,82.655,4.98640993]
[1770751203901,10.8875,82.709,82.666,4.98425776]
[1770751204602,10.03956046,82.73,82.668,4.98425776]
[1770751204804,123.82,82.744,82.668,4.98425776]
[1770751205003,10.8864,82.718,82.669,10.8927]
[1770751205708,10.03956046,82.71,82.652,4.98425776]
[1770751206402,36.32,82.689,82.601,4.97891856]
[1770751206606,10.03956046,82.67,82.601,4.97891856]
[1770751206814,10.8953,82.65,82.603,10.9014]
[1770751207007,10.03956046,82.67,82.604,4.97891856]
[1770751207306,21.20091979,82.703,82.58,10.03956046]
[1770751207307,10.8925,82.672,82.628,10.898]
[1770751207507,10.03956046,82.69,82.581,4.97891856]
[1770751207700,10.03956046,82.67,82.581,4.97891856]
[1770751207902,96.54,82.682,82.635,10.8972]
[1770751208098,10.03956046,82.69,82.635,10.8972]
[1770751208302,10.03956046,82.69,82.629,4.98982021]
[1770751208612,10.8913,82.68,82.629,4.98982021]
[1770751209307,10.03956046,82.69,82.629,4.98982021]
[1770751209308,10.8922,82.674,82.629,4.98982021]
[1770751210108,10.8912,82.681,82.629,4.98982021]
[1770751210310,10.03956046,82.69,82.629,4.98982021]
[1770751211110,10.891,82.682,82.633,4.9966384]
[1770751211502,10.03956046,82.69,82.633,4.9966384]
[1770751211703,10.891,82.683,82.633,4.9966384]
[1770751213814,10.8918,82.677,82.633,4.9966384]
[1770751217204,10.8918,82.677,82.635,5.00957756]
[1770751221213,10.8909,82.684,82.635,5.00957756]
[1770751221419,21.1398688,82.7,82.637,5.00997441]
[1770751221621,10.04158269,82.7,82.637,5.00997441]
[1770751222213,10.8899,82.691,82.643,5.03478051]
[1770751222526,36.32,82.732,82.643,5.03478051]
[1770751222717,123.34,82.736,82.672,5.03478051]
[1770751223623,10.8851,82.728,82.682,5.03492324]
[1770751224027,123.34,82.736,82.682,5.03492324]
[1770751224219,10.885,82.728,82.684,4.9513845]
[1770751227526,123.64,82.748,82.684,4.9513845]
[1770751227829,123.44,82.751,82.684,4.9513845]
[1770751228229,123.44,82.751,82.66,10.04158269]
[1770751228230,10.8828,82.745,82.694,4.95131041]
[1770751228529,10.04158269,82.76,82.694,4.95131041]
[1770751229224,123.48,82.766,82.694,4.95131041]
[1770751229819,10.8809,82.759,82.703,10.8883]
[1770751230020,10.8809,82.759,82.704,4.97141865]
[1770751230216,123.48,82.766,82.704,4.97141865]
[1770751230425,10.8805,82.762,82.707,10.8877]
[1770751230928,123.48,82.766,82.708,4.97141865]
[1770751231429,10.02278598,82.78,82.691,4.97141865]
[1770751231628,133.74278598,82.78,82.691,4.97141865]
[1770751232123,133.74278598,82.78,82.719,4.97146631]
[1770751232327,10.02278598,82.78,82.719,4.97146631]
[1770751232724,10.02278598,82.78,82.724,10.8854]
[1770751234823,10.8786,82.777,82.724,10.8854]
[1770751236027,10.8786,82.777,82.719,4.97146631]
[1770751236830,10.8795,82.77,82.719,4.97146631]
[1770751237219,10.8785,82.778,82.721,4.98537486]
[1770751238926,3.74050331,82.76,82.721,4.98537486]
[1770751239637,3.74050331,82.76,82.675,96.54]
[1770751239638,11.09828611,82.807,82.723,4.98616074]
[1770751239824,3.74050331,82.79,82.731,4.98616074]
[1770751240029,3.74050331,82.8,82.741,5.00773067]
[1770751241329,3.74050331,82.77,82.711,5.00773067]
[1770751241628,3.74050331,82.75,82.711,5.00773067]
[1770751242824,10.881,82.759,82.711,5.00773067]
[1770751243727,10.881,82.759,82.712,15.88064385]
[1770751243922,10.8818,82.753,82.712,15.88064385]
[1770751244129,10.8818,82.753,82.713,4.99856049]
[1770751244331,124.5,82.776,82.713,4.99856049]
[1770751245233,10.02143001,82.78,82.713,4.99856049]
[1770751245540,10.8807,82.761,82.721,10.8859]
[1770751245842,10.8807,82.761,82.722,4.99856049]
[1770751246235,10.8798,82.768,82.722,4.99856049]
[1770751247238,10.8798,82.768,82.724,10.8854]
[1770751247632,10.8787,82.776,82.724,10.8854]
[1770751247831,10.02143001,82.78,82.712,10.887]
[1770751248235,10.02143001,82.78,82.713,5.02017391]
[1770751248430,10.02143001,82.78,82.724,5.02017391]
[1770751249533,124.36,82.779,82.688,5.02017391]
[1770751249933,10.02143001,82.76,82.688,5.02017391]
[1770751250232,10.881,82.759,82.706,10.8878]
[1770751250542,10.02143001,82.76,82.66,10.02143001]
[1770751250741,36.32,82.759,82.677,5.01322443]
[1770751251039,10.02143001,82.74,82.651,5.01305536]
[1770751251234,10.886,82.721,82.672,10.8923]
[1770751251436,36.32,82.738,82.665,5.01305536]
[1770751251639,10.02143001,82.72,82.665,5.01305536]
[1770751252033,10.02143001,82.72,82.627,96.48]
[1770751252034,10.02143001,82.72,82.646,5.04222901]
[1770751252231,124.5,82.719,82.646,5.04222901]
[1770751253032,20.90753001,82.72,82.658,10.8941]
[1770751253232,20.90753001,82.72,82.659,5.04222901]
[1770751254745,10.02143001,82.7,82.642,5.07460517]
[1770751255040,10.02143001,82.7,82.601,5.07460517]
[1770751255241,10.8902,82.689,82.631,5.07460517]
[1770751256944,10.8902,82.689,82.633,10.8974]
[1770751257451,10.02143001,82.72,82.639,5.08034501]
[1770751257652,96.5,82.719,82.639,5.08034501]
[1770751258648,96.5,82.719,82.61,10.02143001]
[1770751258649,10.8895,82.694,82.64,15.97534382]
[1770751258951,96.5,82.719,82.641,5.07884382]
[1770751259849,10.8884,82.702,82.648,5.07884382]
[1770751260850,10.8884,82.702,82.649,10.8953]
[1770751261344,10.8884,82.702,82.65,5.06901986]
[1770751261652,10.8884,82.702,82.651,10.895]
[1770751262050,10.8875,82.71,82.655,15.96211502]
[1770751262643,10.8883,82.703,82.655,5.06761502]
[1770751262847,134.52143001,82.72,82.611,5.06761502]
[1770751263447,10.02143001,82.7,82.611,5.06761502]
[1770751263847,10.8897,82.693,82.637,10.8969]
[1770751265352,10.8897,82.693,82.641,5.08674085]
[1770751265944,10.8897,82.693,82.643,5.08923631]
[1770751266846,10.8897,82.693,82.646,15.98493631]
[1770751267151,10.8905,82.687,82.632,5.08923631]
[1770751268551,10.8894,82.695,82.645,10.8958]
[1770751269449,10.8903,82.688,82.639,5.08888364]
[1770751270248,10.8893,82.696,82.646,10.8957]
[1770751270454,10.8893,82.696,82.647,5.08687242]
[1770751270953,10.8893,82.696,82.65,5.08687242]
[1770751271251,10.8882,82.704,82.65,5.08687242]
[1770751271853,10.889,82.698,82.652,5.08687242]
[1770751272454,10.889,82.698,82.655,5.0870338]
[1770751273549,10.889,82.698,82.657,5.0870338]
[1770751273748,10.02143001,82.74,82.657,5.0870338]
[1770751274747,10.8857,82.723,82.673,5.084585]
[1770751275757,10.8846,82.731,82.682,5.084585]
[1770751276552,10.02932335,82.76,82.682,5.084585]
[1770751276757,10.02932335,82.76,82.692,5.07569567]
[1770751276758,10.8834,82.741,82.692,5.07569567]
[1770751277757,10.8834,82.741,82.696,5.07569567]
[1770751277958,10.8842,82.735,82.682,4.98950429]
[1770751278363,10.02519628,82.76,82.687,4.98950429]
[1770751278658,10.8829,82.745,82.687,4.98950429]
[1770751278954,36.32,82.756,82.687,4.98950429]
[1770751279161,124.06,82.757,82.687,4.98950429]
[1770751280156,10.02519628,82.76,82.687,4.98950429]
[1770751280863,10.8818,82.753,82.704,4.98641964]
[1770751281362,10.8829,82.744,82.694,10.8893]
[1770751281756,10.02519628,82.76,82.689,4.98644779]
[1770751282059,10.8827,82.746,82.689,4.98644779]
[1770751282860,10.8827,82.746,82.698,4.99680677]
[1770751283764,10.8813,82.756,82.702,4.99679713]
[1770751284158,10.8825,82.747,82.702,4.99679713]
[1770751284666,10.02519628,82.76,82.688,15.8892583]
[1770751284965,3.74325351,82.74,82.688,15.8892583]
[1770751285660,3.74325351,82.7,82.643,4.9990583]
[1770751285860,3.74325351,82.69,82.643,4.9990583]
[1770751286066,3.74325351,82.69,82.651,10.8951]
[1770751286258,3.74325351,82.7,82.651,15.88567922]
[1770751286860,10.03595713,82.72,82.651,15.88567922]
[1770751287066,10.8878,82.707,82.659,4.99057922]
[1770751288353,10.8891,82.697,82.659,4.99057922]
[1770751288754,10.03595713,82.72,82.659,4.99057922]
[1770751289768,10.8882,82.704,82.659,4.99057922]
[1770751290271,10.8873,82.711,82.66,4.97715379]
[1770751291759,10.8873,82.711,82.662,4.97715379]
[1770751292166,10.03595713,82.74,82.662,4.97715379]
[1770751292367,36.32,82.759,82.686,4.97733285]
[1770751293667,10.8829,82.745,82.694,4.97733285]
[1770751294669,10.8829,82.745,82.702,4.97227151]
[1770751296564,10.03595713,82.76,82.688,10.8901]
[1770751297467,10.03595713,82.74,82.661,4.95046231]
[1770751297665,10.03595713,82.72,82.631,4.95046231]
[1770751298073,10.03595713,82.72,82.646,4.95513622]
[1770751298265,124.66,82.719,82.646,4.95513622]
[1770751298668,10.8888,82.699,82.648,4.95513622]
[1770751299065,124.66,82.719,82.648,4.95513622]
[1770751299266,10.03595713,82.72,82.648,4.95513622]
[1770751300664,10.03595713,82.72,82.662,4.96515937]
[1770751300863,124.72,82.725,82.662,4.96515937]
[1770751301066,10.03595713,82.74,82.662,4.96515937]
[1770751301671,10.8849,82.729,82.662,4.96515937]
[1770751301868,10.8849,82.729,82.681,10.8911]
[1770751302064,10.03595713,82.74,82.631,4.96789554]
[1770751302670,10.8867,82.716,82.665,4.96789554]
[1770751303170,21.7677,82.737,82.655,10.8946]
[1770751303370,10.03595713,82.72,82.655,10.8946]
[1770751304072,10.8883,82.703,82.655,10.8946]
[1770751305070,10.8883,82.703,82.657,15.86281046]
[1770751305669,135.9263,82.719,82.657,15.86281046]
[1770751306973,125.04,82.719,82.664,4.96870262]
[1770751307175,125.24,82.734,82.664,4.96870262]
[1770751307569,125.24,82.734,82.68,10.8912]
[1770751309675,125.24,82.734,82.68,15.85745121]
[1770751310071,10.8844,82.733,82.68,15.85745121]
[1770751311380,10.883,82.743,82.69,4.96592375]
[1770751312880,10.883,82.743,82.694,4.96690068]
[1770751313271,10.8822,82.75,82.7,4.96690068]
[1770751313675,126.18,82.77,82.7,4.96690068]
[1770751314576,126.46,82.769,82.7,4.96690068]
[1770751314775,10.8817,82.754,82.709,10.8874]
[1770751315178,10.8817,82.754,82.7,4.96690068]
[1770751315374,126.46,82.769,82.7,4.96690068]
[1770751315689,10.03595713,82.76,82.681,4.96336921]
[1770751316879,10.8835,82.74,82.694,10.8893]
[1770751317183,10.03595713,82.76,82.695,4.96199911]
[1770751317384,127.24,82.759,82.695,4.96199911]
[1770751318680,10.8825,82.747,82.698,10.8889]
[1770751319184,320.89308688,82.773,82.699,4.96315403]
[1770751319386,127.48,82.772,82.699,4.96315403]
[1770751320089,10.8823,82.749,82.699,4.96315403]
[1770751321088,10.03595713,82.76,82.683,4.95709375]
[1770751321283,10.03595713,82.76,82.661,4.95709375]
[1770751321486,10.03595713,82.74,82.661,4.95709375]
[1770751322789,10.8868,82.715,82.672,10.8923]
[1770751323390,128.06,82.726,82.666,4.97366843]
[1770751324287,128.3,82.725,82.666,4.97366843]
[1770751324792,10.8865,82.717,82.668,15.90421836]
[1770751325290,10.8865,82.717,82.669,5.01141836]
[1770751326092,10.8865,82.717,82.671,10.8924]
[1770751326596,128.3,82.725,82.681,15.91804022]
[1770751329989,10.8857,82.723,82.681,15.91804022]
[1770751330991,10.8857,82.723,82.681,5.02704022]
[1770751331296,10.8857,82.723,82.675,10.8919]
[1770751331297,10.8864,82.718,82.675,10.8919]
[1770751333897,10.8864,82.718,82.675,15.8649284]
[1770751335690,10.8855,82.724,82.682,10.891]
[1770751336288,128.3,82.725,82.662,5.02149031]
[1770751337596,10.8868,82.714,82.67,10.8925]
[1770751337997,10.8868,82.714,82.662,5.02149031]
[1770751338502,10.8878,82.707,82.662,5.02149031]
[1770751339701,10.8878,82.707,82.662,15.91509031]
[1770751340006,130.94,82.712,82.662,5.02149031]
[1770751340505,130.94,82.712,82.675,10.8918]
[1770751341802,141.8272,82.712,82.675,10.8918]
[1770751342004,141.8272,82.712,82.662,5.02149031]
[1770751342005,130.94,82.712,82.666,10.8931]
[1770751342205,11.08208872,82.721,82.666,10.8931]
[1770751342399,131.44,82.72,82.666,10.8931]
[1770751342801,10.888,82.705,82.666,10.8931]
[1770751344903,10.03367097,82.71,82.622,5.03324977]
[1770751345205,10.03367097,82.69,82.622,5.03324977]
[1770751346104,10.03367097,82.69,82.639,15.92967552]
[1770751346105,10.8907,82.685,82.639,15.92967552]
[1770751348104,131.44,82.69,82.646,5.04347232]
[1770751349403,10.8871,82.712,82.662,5.04347232]
[1770751349605,132.08,82.711,82.662,5.04347232]
[1770751350809,10.8875,82.709,82.662,5.04347232]
[1770751351210,142.31367097,82.71,82.647,5.05530807]
[1770751351510,142.31367097,82.71,82.623,5.05530807]
[1770751351906,10.03367097,82.69,82.607,5.05530807]
[1770751352302,10.8911,82.682,82.628,10.8981]
[1770751352503,10.8911,82.682,82.628,15.93301835]
[1770751352702,10.8911,82.682,82.629,5.03491835]
[1770751353211,132.48,82.721,82.658,5.03491835]
[1770751353910,10.8875,82.709,82.661,15.92871835]
[1770751356016,10.8875,82.709,82.662,5.02256724]
[1770751357909,132.36,82.715,82.647,5.02256724]
[1770751358512,10.03367097,82.71,82.647,5.02256724]
[1770751359310,10.8891,82.697,82.649,5.0222486]
[1770751360712,10.8891,82.697,82.65,15.91861038]
[1770751361117,10.03367097,82.7,82.618,5.02351038]
[1770751361317,10.03367097,82.68,82.621,10.899]
[1770751362815,10.8935,82.664,82.621,10.899]
[1770751364118,10.8922,82.673,82.63,5.04047464]
[1770751365814,10.8922,82.673,82.633,5.04047464]
[1770751366022,132.16,82.686,82.633,5.04047464]
[1770751366517,132.16,82.686,82.639,5.02500197]
[1770751366725,10.8915,82.679,82.639,5.02500197]
[1770751367523,10.8915,82.679,82.641,5.02500197]
[1770751367721,10.8895,82.694,82.641,5.02500197]
[1770751367914,10.03367097,82.7,82.641,5.02500197]
[1770751368518,10.8894,82.695,82.641,5.02500197]
[1770751369715,10.8894,82.695,82.644,10.896]
[1770751371227,10.03367097,82.7,82.65,10.8952]
[1770751371627,132.08,82.703,82.652,5.01219055]
[1770751371929,11.02878524,82.722,82.652,5.01219055]
[1770751372123,11.02878524,82.723,82.672,10.8923]
[1770751372326,132.32,82.725,82.673,5.01127618]
[1770751373522,10.8856,82.724,82.675,10.8919]
[1770751373726,10.8856,82.724,82.673,5.01127618]
[1770751374630,10.8856,82.724,82.674,4.99747118]
[1770751375630,10.8871,82.713,82.655,4.99747118]
[1770751376330,10.8871,82.713,82.657,10.8943]
[1770751376536,10.8871,82.713,82.657,15.89513068]
[1770751376729,132.82,82.729,82.642,5.00083068]
[1770751376730,36.32,82.725,82.642,5.00083068]
[1770751376931,10.03367097,82.71,82.642,5.00083068]
[1770751377431,133.12,82.709,82.642,5.00083068]
[1770751377634,10.8885,82.702,82.656,5.00083068]
[1770751377824,133.12,82.709,82.656,5.00083068]
[1770751378427,10.8892,82.696,82.656,5.00083068]
[1770751379937,10.8892,82.696,82.648,10.8954]
[1770751380534,10.03367097,82.7,82.639,10.8966]
[1770751381135,10.8905,82.687,82.639,10.8966]
[1770751381534,10.03367097,82.7,82.635,4.99632437]
[1770751381535,11.02878524,82.699,82.635,4.99632437]
[1770751381835,11.02878524,82.698,82.635,4.99632437]
[1770751382341,11.02878524,82.694,82.635,4.99632437]
[1770751382535,11.02878524,82.699,82.637,4.99697714]
[1770751383538,10.8914,82.68,82.638,10.8968]
[1770751383839,10.03367097,82.7,82.639,4.99697714]
[1770751384842,3.74943031,82.67,82.624,4.98633475]
[1770751385235,3.74943031,82.69,82.646,10.8957]
[1770751385440,3.74943031,82.69,82.647,4.98633475]
[1770751388737,10.8904,82.687,82.647,4.98633475]
[1770751389648,3.74943031,82.68,82.647,4.98633475]
[1770751390043,10.8904,82.687,82.647,4.98633475]
[1770751390944,3.74769965,82.68,82.647,4.98633475]
[1770751392242,3.74769965,82.68,82.647,5.00633475]
[1770751394137,10.8904,82.687,82.647,5.00633475]
[1770751394341,3.74769965,82.68,82.647,5.00633475]
[1770751394645,3.74769965,82.67,82.647,0.02]
[1770751398340,10.8916,82.678,82.648,5.05700464]
[1770751398656,3.74769965,82.7,82.651,5.05700464]
[1770751398852,3.74769965,82.71,82.651,5.05700464]
[1770751399048,3.74769965,82.71,82.661,5.05700464]
[1770751399449,10.8869,82.714,82.67,8.80470429]
[1770751399650,10.8869,82.714,82.671,5.05700464]